fUST/lending_fUST_20251201
["ID","MTS","AMOUNT","RATE_DAILY","PERIOD"]
[395246381,1764566470792,1535.72626435,0.0001401,9]
[395246382,1764566486710,3439.72098641,0.0001401,9]
[395246413,1764567031749,-236.0,0.0001044,2]
[395246415,1764567031759,-176.57337955,0.00010466,2]
[395246417,1764567031768,-183.55353686,0.00010551,2]
[395246419,1764567031780,-116.44646314,0.00010551,2]
[395246421,1764567031789,-300.0,0.00010551,2]
[395246423,1764567031798,-291.0,0.00010551,2]
[395246425,1764567031808,-42244.89976875,0.00010552,2]
[395246431,1764567031848,-610.94909855,0.00010552,2]
[395246475,1764567037876,-4670.6585885,0.00010552,2]
[395246477,1764567037887,-863.94,0.00010552,2]
[395246483,1764567037930,-673.35,0.00010552,2]
[395246491,1764567037993,-3087.56699934,0.00010552,2]
[395246494,1764567038008,-41148.93262137,0.00010552,2]
[395247032,1764567043250,-3999.998655,0.00010552,2]
[395247040,1764567043312,-4000.0,0.00010552,2]
[395248542,1764568174274,-282.57820148,9.104e-05,2]
[395248543,1764568174295,-225.0,9.104e-05,2]
[395248544,1764568174316,-74.20859852,9.259e-05,2]
[395248562,1764568231873,-226.0,9.258e-05,2]
[395248563,1764568231883,-101.83331344,9.259e-05,2]
[395248564,1764568231892,-232.996,0.0001034,2]
[395248565,1764568231902,-207.58730134,0.00010383,2]
[395248566,1764568231950,-305.24391306,0.00010383,2]
[395248783,1764568240069,-687.1687856,0.00010383,2]
[395248785,1764568240079,-300.0,0.00010383,2]
[395248787,1764568240088,-363.92883444,0.00010383,2]
[395248789,1764568240097,-202.73749855,0.00010383,2]
[395248791,1764568240107,-345.85637011,0.00010383,2]
[395248793,1764568240116,-16570.81064333,0.00010384,2]
[395249141,1764568243272,-8859.1472681,0.00010384,2]
[395249408,1764568246051,-372.9242503,0.0001028,2]
[395250591,1764568800900,150.0,0.00018185,30]
[395250592,1764568801373,150.0,0.00019838,30]
[395250594,1764568887383,150.0,0.00017788,30]
[395250595,1764568887770,150.0,0.00019405,30]
[395250596,1764569041967,150.0,0.00019214,30]
[395250597,1764569147094,-782.0,8.561e-05,2]
[395250598,1764569147115,-782.0,8.647e-05,2]
[395250599,1764569147136,-782.0,8.734e-05,2]
[395250600,1764569147155,-172.52107372,8.862e-05,2]
[395250601,1764569147175,-257.0,8.902e-05,2]
[395250602,1764569147198,-300.0,8.902e-05,2]
[395250603,1764569147218,-157.0,8.902e-05,2]
[395250604,1764569147239,-1200.0,8.902e-05,2]
[395250605,1764569147259,-50000.0,8.903e-05,2]
[395250606,1764569147281,-202.30068665,8.903e-05,2]
[395250607,1764569147300,-364.14123596,8.903e-05,2]
[395250608,1764569147320,-647.36219726,8.903e-05,2]
[395250609,1764569147340,-1011.50343323,8.903e-05,2]
[395250610,1764569147360,-1455.1083789,8.903e-05,2]
[395250611,1764569147380,-303.1087185,8.903e-05,2]
[395250612,1764569147399,-545.59569329,8.903e-05,2]
[395250613,1764569147419,-969.94789919,8.903e-05,2]
[395250614,1764569147439,-1515.54359248,8.903e-05,2]
[395250615,1764569147458,-2182.38277317,8.903e-05,2]
[395250616,1764569147478,-2970.46544126,8.903e-05,2]
[395250617,1764569147497,-3879.79159674,8.903e-05,2]
[395250618,1764569147517,-4910.36123963,8.903e-05,2]
[395250619,1764569147537,-6056.11219554,8.903e-05,2]
[395250620,1764569147557,-300.0,9.08e-05,2]
[395250621,1764569147578,-300.0,9.08e-05,2]
[395250622,1764569147599,-300.0,9.08e-05,2]
[395250623,1764569147621,-300.0,9.08e-05,2]
[395250624,1764569147641,-300.0,9.08e-05,2]
[395250625,1764569147661,-300.0,9.08e-05,2]
[395250626,1764569147682,-300.0,9.08e-05,2]
[395250627,1764569147702,-300.0,9.08e-05,2]
[395250628,1764569147724,-300.0,9.08e-05,2]
[395250629,1764569147745,-300.0,9.08e-05,2]
[395250630,1764569147766,-300.0,9.08e-05,2]
[395250631,1764569147786,-300.0,9.08e-05,2]
[395250632,1764569147805,-300.0,9.08e-05,2]
[395250633,1764569147830,-300.0,9.08e-05,2]
[395250634,1764569147851,-300.0,9.08e-05,2]
[395250635,1764569147870,-225.0,9.092e-05,2]
[395250636,1764569147891,-226.13036639,9.104e-05,2]
[395250637,1764569147911,-157.28962805,9.104e-05,2]
[395250638,1764569147932,-600.0,9.261e-05,2]
[395250639,1764569147952,-213.32890638,9.369e-05,2]
[395250640,1764569147972,-500.0,9.369e-05,2]
[395250641,1764569147990,-614.92515654,9.369e-05,2]
[395250642,1764569148009,-500.0,9.369e-05,2]
[395250643,1764569148029,-500.0,9.369e-05,2]
[395250644,1764569148048,-156.2979856,9.369e-05,2]
[395250645,1764569148069,-500.0,9.369e-05,2]
[395250646,1764569148091,-500.0,9.369e-05,2]
[395250647,1764569148111,-500.0,9.369e-05,2]
[395250648,1764569148131,-368.31322008,9.369e-05,2]
[395250649,1764569148150,-242.09945908,9.37e-05,2]
[395250650,1764569148168,-186.397,9.37e-05,2]
[395250651,1764569148188,-322.76691745,9.372e-05,2]
[395250652,1764569148220,-368.87647708,9.372e-05,2]
[395250653,1764569148239,-576.36949545,9.372e-05,2]
[395250654,1764569148258,-829.14210137,9.372e-05,2]
[395250655,1764569148276,-500.0,9.372e-05,2]
[395250656,1764569148294,-193.58429879,9.372e-05,2]
[395250657,1764569148314,-500.0,9.646e-05,2]
[395250658,1764569148335,-420.0,9.792e-05,2]
[395250659,1764569148354,-500.0,9.92e-05,2]
[395250660,1764569148372,-1873.83133752,9.944e-05,2]
[395250661,1764569148390,-1873.83133752,0.0001009,2]
[395250662,1764569148409,-720.0,0.00010187,2]
[395250663,1764569148430,-500.0,0.00010194,2]
[395250664,1764569148453,-1873.83133752,0.00010237,2]
[395250665,1764569148471,-1873.83133752,0.00010383,2]
[395250666,1764569148490,-500.0,0.00010468,2]
[395250667,1764569148508,-1873.83133752,0.00010529,2]
[395250668,1764569148527,-20786.4910678,0.00010568,2]
[395250669,1764569148546,-2136.7938523,0.00010568,2]
[395250670,1764569148564,-1634.20596394,0.00010673,2]
[395250671,1764569148584,-1873.83133752,0.00010676,2]
[395250672,1764569148606,-4264.56159024,0.00010684,2]
[395250673,1764569148628,-500.0,0.00010742,2]
[395250674,1764569148648,-587.0,0.00010771,2]
[395250675,1764569148669,-1873.83133752,0.00010822,2]
[395250676,1764569148688,-193.58429878,0.00010858,2]
[395250677,1764569148709,-203.57486699,0.00010862,2]
[395250678,1764569148729,-1634.20596394,0.00010872,2]
[395250679,1764569148748,-396.24684349,0.00010943,2]
[395250680,1764569148767,-270.1153956,0.00010943,2]
[395250681,1764569148786,-151.0,0.00010943,2]
[395250682,1764569148808,-401.0,0.00010943,2]
[395250683,1764569148827,-151.0,0.00010943,2]
[395250684,1764569148846,-231.28369723,0.00010943,2]
[395250685,1764569148866,-500.0,0.00010943,2]
[395250686,1764569148885,-414.0,0.00010943,2]
[395250687,1764569148905,-500.0,0.00010943,2]
[395250688,1764569148924,-500.0,0.00010943,2]
[395250689,1764569148944,-500.0,0.00010943,2]
[395250690,1764569148965,-340.41868461,0.00010943,2]
[395250691,1764569148986,-500.0,0.00010943,2]
[395250692,1764569149007,-304.15774543,0.00010943,2]
[395250693,1764569149029,-194.72792766,0.00010943,2]
[395250694,1764569149047,-227.08938749,0.00010943,2]
[395250695,1764569149066,-600.23725749,0.00010943,2]
[395250696,1764569149085,-250.0,0.00010943,2]
[395250697,1764569149103,-152.73205852,0.00010943,2]
[395250698,1764569149123,-308.15398497,0.00010943,2]
[395250699,1764569149145,-353.71323156,0.00010944,2]
[395250700,1764569149166,-1252.5,0.00010958,2]
[395250701,1764569149184,-853.73,0.00010958,2]
[395250702,1764569149210,-500.0,0.00010958,2]
[395250703,1764569149229,-228.0878752,0.00010958,2]
[395250704,1764569149251,-519.21393158,0.00010958,2]
[395250705,1764569149274,-500.0,0.00010958,2]
[395250706,1764569149296,-500.97913839,0.00010958,2]
[395250707,1764569149317,-540.74208362,0.00010958,2]
[395250708,1764569149338,-151.0,0.00010958,2]
[395250709,1764569149358,-709.19,0.00010958,2]
[395250710,1764569149379,-500.0,0.00010958,2]
[395250711,1764569149400,-500.0,0.00010958,2]
[395250712,1764569149421,-552.75234098,0.00010958,2]
[395250713,1764569149444,-500.0,0.00010958,2]
[395250714,1764569149464,-577.08,0.00010958,2]
[395250715,1764569149485,-500.0,0.00010958,2]
[395250716,1764569149505,-625.37,0.00010958,2]
[395250717,1764569149526,-667.62,0.00010958,2]
[395250718,1764569149546,-162.04008448,0.00010958,2]
[395250719,1764569225100,-300.0,0.00010632,2]
[395250720,1764569225121,-17933.39387221,0.00010633,2]
[395250721,1764569225142,-207.59035779,0.00010739,2]
[395250722,1764569225162,-184.03310951,0.00010739,2]
[395250723,1764569225181,-17933.39387221,0.0001074,2]
[395250724,1764569225201,-300.0,0.00010845,2]
[395250725,1764569225230,-300.0,0.00010845,2]
[395250726,1764569225255,-300.0,0.00010845,2]
[395250727,1764569225276,-300.0,0.00010845,2]
[395250728,1764569225297,-300.0,0.00010845,2]
[395250729,1764569225319,-300.0,0.00010845,2]
[395250730,1764569225340,-300.0,0.00010845,2]
[395250731,1764569225361,-300.0,0.00010845,2]
[395250732,1764569225380,-300.0,0.00010845,2]
[395250733,1764569225400,-300.0,0.00010845,2]
[395250734,1764569225419,-300.0,0.00010845,2]
[395250735,1764569225442,-300.0,0.00010845,2]
[395250736,1764569225462,-300.0,0.00010845,2]
[395250737,1764569225481,-300.0,0.00010845,2]
[395250738,1764569225500,-300.0,0.00010845,2]
[395250739,1764569225519,-169.46962135,0.00010847,2]
[395250740,1764569225539,-21465.07899811,0.00010848,2]
[395250741,1764569225558,-337.95991552,0.00010958,2]
[395250742,1764569225578,-500.0,0.00010958,2]
[395250743,1764569225597,-500.0,0.00010958,2]
[395250744,1764569225618,-151.0,0.00010958,2]
[395250745,1764569225638,-500.0,0.00010958,2]
[395250746,1764569225657,-151.0,0.00010958,2]
[395250747,1764569225677,-500.0,0.00010958,2]
[395250748,1764569225701,-500.0,0.00010958,2]
[395250749,1764569225721,-500.0,0.00010958,2]
[395250750,1764569225740,-151.0,0.00010958,2]
[395250751,1764569225760,-500.0,0.00010958,2]
[395250752,1764569225779,-500.0,0.00010958,2]
[395250753,1764569225798,-1520.25,0.00010958,2]
[395250754,1764569225817,-151.0,0.00010958,2]
[395250755,1764569225837,-151.0,0.00010958,2]
[395250756,1764569225857,-151.0,0.00010958,2]
[395250757,1764569225877,-151.0,0.00010958,2]
[395250758,1764569225896,-151.0,0.00010958,2]
[395250759,1764569225917,-500.0,0.00010958,2]
[395250760,1764569225940,-151.0,0.00010958,2]
[395250761,1764569225960,-501.91466859,0.00010958,2]
[395250762,1764569225982,-500.0,0.00010958,2]
[395250763,1764569226003,-1039.73,0.00010958,2]
[395250764,1764569226024,-619.02295313,0.00010958,2]
[395250765,1764569226045,-500.99110328,0.00010958,2]
[395250766,1764569226066,-152.005427,0.00010958,2]
[395250767,1764569226086,-222.49549508,0.00010958,2]
[395250768,1764569226105,-500.0,0.00010958,2]
[395250769,1764569226125,-151.0,0.00010958,2]
[395250770,1764569226144,-500.0,0.00010958,2]
[395250771,1764569226168,-500.0,0.00010958,2]
[395250772,1764569226188,-500.0,0.00010958,2]
[395250773,1764569226208,-500.0,0.00010958,2]
[395250774,1764569226230,-151.674845,0.00010958,2]
[395250775,1764569226250,-159.430553,0.00010958,2]
[395250776,1764569226270,-151.0,0.00010958,2]
[395250777,1764569226289,-255.21601305,0.00010958,2]
[395250778,1764569226311,-500.0,0.00010958,2]
[395250779,1764569226331,-151.0,0.00010958,2]
[395250780,1764569226352,-500.0,0.00010958,2]
[395250781,1764569226372,-500.0,0.00010958,2]
[395250782,1764569226391,-500.0,0.00010958,2]
[395250783,1764569226411,-500.0,0.00010958,2]
[395250784,1764569226431,-500.0,0.00010958,2]
[395250785,1764569226451,-500.98808101,0.00010958,2]
[395250786,1764569226471,-537.31,0.00010958,2]
[395250787,1764569226490,-500.0,0.00010958,2]
[395250788,1764569226511,-500.0,0.00010958,2]
[395250789,1764569226530,-151.0,0.00010958,2]
[395250790,1764569226550,-500.0,0.00010958,2]
[395250791,1764569226569,-500.0,0.00010958,2]
[395250792,1764569226589,-500.0,0.00010958,2]
[395250793,1764569226609,-500.0,0.00010958,2]
[395250794,1764569226629,-500.0,0.00010958,2]
[395250795,1764569226649,-500.0,0.00010958,2]
[395250796,1764569226670,-500.0,0.00010958,2]
[395250797,1764569226690,-503.54311399,0.00010958,2]
[395250798,1764569226709,-500.0,0.00010958,2]
[395250799,1764569226729,-502.45532837,0.00010958,2]
[395250800,1764569226749,-500.0,0.00010958,2]
[395250801,1764569226770,-500.0,0.00010958,2]
[395250802,1764569226790,-500.0,0.00010958,2]
[395250803,1764569226810,-500.0,0.00010958,2]
[395250804,1764569226830,-502.43540359,0.00010958,2]
[395250805,1764569226850,-515.05,0.00010958,2]
[395250806,1764569226870,-633.362904,0.00010958,2]
[395250807,1764569226889,-500.0,0.00010958,2]
[395250808,1764569226912,-500.0,0.00010958,2]
[395250809,1764569226933,-1435.7,0.00010958,2]
[395250810,1764569226953,-500.0,0.00010958,2]
[395250811,1764569226972,-500.0,0.00010958,2]
[395250812,1764569226992,-501.98327282,0.00010958,2]
[395250813,1764569227015,-587.98464149,0.00010958,2]
[395250814,1764569227039,-806.27,0.00010958,2]
[395250815,1764569227060,-500.0,0.00010958,2]
[395250816,1764569227080,-678.34,0.00010958,2]
[395250817,1764569227105,-151.0,0.00010958,2]
[395250818,1764569227128,-500.0,0.00010958,2]
[395250819,1764569227149,-500.0,0.00010958,2]
[395250820,1764569227169,-502.2161594,0.00010958,2]
[395250821,1764569227188,-1002.34607288,0.00010958,2]
[395250822,1764569227208,-500.0,0.00010958,2]
[395250823,1764569227231,-502.52389397,0.00010958,2]
[395250824,1764569227252,-500.0,0.00010958,2]
[395250825,1764569227277,-500.0,0.00010958,2]
[395250826,1764569227305,-923.99,0.00010958,2]
[395250827,1764569227326,-500.0,0.00010958,2]
[395250828,1764569227347,-503.92302995,0.00010958,2]
[395250829,1764569227367,-690.81,0.00010958,2]
[395250830,1764569227388,-500.74003871,0.00010958,2]
[395250831,1764569227408,-578.07,0.00010958,2]
[395250832,1764569227429,-500.0,0.00010958,2]
[395250833,1764569227449,-500.0,0.00010958,2]
[395250834,1764569227471,-546.15,0.00010958,2]
[395250835,1764569227491,-500.0,0.00010958,2]
[395250836,1764569227514,-500.0,0.00010958,2]
[395250837,1764569227534,-500.0,0.00010958,2]
[395250838,1764569227553,-500.73692049,0.00010958,2]
[395250839,1764569227573,-517.27,0.00010958,2]
[395250840,1764569227593,-500.0,0.00010958,2]
[395250841,1764569227612,-151.0,0.00010958,2]
[395250842,1764569227632,-500.0,0.00010958,2]
[395250843,1764569227652,-151.0,0.00010958,2]
[395250844,1764569227672,-360.53472005,0.00010958,2]
[395250845,1764569227692,-500.0,0.00010958,2]
[395250846,1764569227712,-500.0,0.00010958,2]
[395250847,1764569227731,-500.0,0.00010958,2]
[395250848,1764569227752,-506.08662147,0.00010958,2]
[395250849,1764569227771,-1372.1,0.00010958,2]
[395250850,1764569227789,-500.0,0.00010958,2]
[395250851,1764569227809,-500.0,0.00010958,2]
[395250852,1764569227830,-559.89,0.00010958,2]
[395250853,1764569227851,-500.0,0.00010958,2]
[395250854,1764569227873,-373.58142694,0.00010958,2]
[395250855,1764569227894,-500.0,0.00010958,2]
[395250856,1764569227915,-681.77,0.00010958,2]
[395250857,1764569227936,-500.0,0.00010958,2]
[395250858,1764569227955,-502.53643047,0.00010958,2]
[395250859,1764569227974,-924.27,0.00010958,2]
[395250860,1764569227994,-500.0,0.00010958,2]
[395250861,1764569228258,-500.0,0.00010958,2]
[395250862,1764569228282,-871.29,0.00010958,2]
[395250863,1764569228305,-772.87,0.00010958,2]
[395250864,1764569228328,-500.0,0.00010958,2]
[395250865,1764569228350,-501.51102239,0.00010958,2]
[395250866,1764569228372,-500.0,0.00010958,2]
[395250867,1764569228392,-500.0,0.00010958,2]
[395250868,1764569228416,-502.28975666,0.00010958,2]
[395250869,1764569228435,-1266.35,0.00010958,2]
[395250870,1764569228457,-500.0,0.00010958,2]
[395250871,1764569228476,-151.0,0.00010958,2]
[395250872,1764569228496,-1595.12,0.00010958,2]
[395250873,1764569228515,-500.0,0.00010958,2]
[395250874,1764569228535,-151.0,0.00010958,2]
[395250875,1764569228556,-1569.18,0.00010958,2]
[395250876,1764569228579,-174.110084,0.00010958,2]
[395250877,1764569228599,-500.0,0.00010958,2]
[395250878,1764569228619,-504.35603459,0.00010958,2]
[395250879,1764569228640,-873.89,0.00010958,2]
[395250880,1764569228660,-505.51562318,0.00010958,2]
[395250881,1764569228681,-500.0,0.00010958,2]
[395250882,1764569228703,-500.0,0.00010958,2]
[395250883,1764569228724,-286.35869996,0.00010958,2]
[395250884,1764569228747,-500.0,0.00010958,2]
[395250885,1764569228769,-500.0,0.00010958,2]
[395250886,1764569228791,-500.0,0.00010958,2]
[395250887,1764569228812,-1573.84,0.00010958,2]
[395250888,1764569228833,-500.0,0.00010958,2]
[395250889,1764569228854,-500.0,0.00010958,2]
[395250890,1764569228874,-766.5,0.00010958,2]
[395250891,1764569228895,-502.75902939,0.00010958,2]
[395250892,1764569228917,-500.0,0.00010958,2]
[395250893,1764569228937,-500.0,0.00010958,2]
[395250894,1764569228958,-500.0,0.00010958,2]
[395250895,1764569228979,-500.0,0.00010958,2]
[395250896,1764569228999,-500.0,0.00010958,2]
[395250897,1764569229019,-503.60097941,0.00010958,2]
[395250898,1764569229040,-500.51,0.00010958,2]
[395250899,1764569229060,-647.27,0.00010958,2]
[395250900,1764569229086,-500.0,0.00010958,2]
[395250901,1764569229108,-637.27,0.00010958,2]
[395250902,1764569229130,-604.76,0.00010958,2]
[395250903,1764569229151,-500.0,0.00010958,2]
[395250904,1764569229173,-505.2,0.00010958,2]
[395250905,1764569229195,-151.0,0.00010958,2]
[395250906,1764569229217,-500.0,0.00010958,2]
[395250907,1764569229240,-500.0,0.00010958,2]
[395250908,1764569229262,-658.36,0.00010958,2]
[395250909,1764569229284,-541.79,0.00010958,2]
[395250910,1764569229306,-500.0,0.00010958,2]
[395250911,1764569229326,-500.0,0.00010958,2]
[395250912,1764569229346,-500.0,0.00010958,2]
[395250913,1764569229366,-500.0,0.00010958,2]
[395250914,1764569229386,-500.0,0.00010958,2]
[395250915,1764569229406,-500.0,0.00010958,2]
[395250916,1764569229425,-500.0,0.00010958,2]
[395250917,1764569229444,-500.0,0.00010958,2]
[395250918,1764569229463,-500.0,0.00010958,2]
[395250919,1764569229484,-500.0,0.00010958,2]
[395250920,1764569229505,-663.86,0.00010958,2]
[395250921,1764569229528,-500.0,0.00010958,2]
[395250922,1764569229549,-500.0,0.00010958,2]
[395250923,1764569229568,-655.19,0.00010958,2]
[395250924,1764569229588,-501.61530633,0.00010958,2]
[395250925,1764569229608,-500.0,0.00010958,2]
[395250926,1764569229629,-623.68,0.00010958,2]
[395250927,1764569229651,-500.0,0.00010958,2]
[395250928,1764569229676,-500.0,0.00010958,2]
[395250929,1764569229699,-500.70639276,0.00010958,2]
[395250930,1764569229721,-560.22,0.00010958,2]
[395250931,1764569229742,-500.0,0.00010958,2]
[395250932,1764569229762,-374.43629975,0.00010958,2]
[395250933,1764569229782,-512.13040118,0.00010958,2]
[395250934,1764569229803,-500.0,0.00010958,2]
[395250935,1764569229825,-500.0,0.00010958,2]
[395250936,1764569229846,-151.0,0.00010958,2]
[395250937,1764569229867,-151.0,0.00010958,2]
[395250938,1764569229887,-746.47,0.00010958,2]
[395250939,1764569229910,-500.0,0.00010958,2]
[395250940,1764569229930,-500.0,0.00010958,2]
[395250941,1764569229952,-151.0,0.00010958,2]
[395250942,1764569229972,-500.0,0.00010958,2]
[395250943,1764569229992,-752.76,0.00010958,2]
[395250944,1764569230012,-151.0,0.00010958,2]
[395250945,1764569230031,-504.09473117,0.00010958,2]
[395250946,1764569230050,-500.0,0.00010958,2]
[395250947,1764569230069,-789.53,0.00010958,2]
[395250948,1764569230090,-500.0,0.00010958,2]
[395250949,1764569230110,-500.0,0.00010958,2]
[395250950,1764569230130,-1603.01,0.00010958,2]
[395250951,1764569230150,-500.0,0.00010958,2]
[395250952,1764569230172,-500.0,0.00010958,2]
[395250953,1764569230192,-659.4,0.00010958,2]
[395250954,1764569230212,-500.0,0.00010958,2]
[395250955,1764569230236,-500.0,0.00010958,2]
[395250956,1764569230256,-665.04,0.00010958,2]
[395250957,1764569230276,-500.0,0.00010958,2]
[395250958,1764569230295,-500.0,0.00010958,2]
[395250959,1764569230316,-500.0,0.00010958,2]
[395250960,1764569230336,-500.0,0.00010958,2]
[395250961,1764569230356,-500.0,0.00010958,2]
[395250962,1764569230375,-501.6053564,0.00010958,2]
[395250963,1764569230396,-610.67,0.00010958,2]
[395250964,1764569230416,-500.0,0.00010958,2]
[395250965,1764569230437,-500.0,0.00010958,2]
[395250966,1764569230457,-500.0,0.00010958,2]
[395250967,1764569230477,-501.76536215,0.00010958,2]
[395250968,1764569230497,-500.0,0.00010958,2]
[395250969,1764569230516,-500.0,0.00010958,2]
[395250970,1764569230536,-500.0,0.00010958,2]
[395250971,1764569230618,-1673.55,0.00010958,2]
[395250972,1764569230639,-502.77648444,0.00010958,2]
[395250973,1764569230660,-500.0,0.00010958,2]
[395250974,1764569230679,-672.85,0.00010958,2]
[395250975,1764569230699,-502.11787741,0.00010958,2]
[395250976,1764569230719,-921.09,0.00010958,2]
[395250977,1764569230738,-500.0,0.00010958,2]
[395250978,1764569230758,-500.0,0.00010958,2]
[395250979,1764569230777,-500.0,0.00010958,2]
[395250980,1764569230796,-500.0,0.00010958,2]
[395250981,1764569230816,-1678.44,0.00010958,2]
[395250982,1764569230836,-500.0,0.00010958,2]
[395250983,1764569230855,-500.0,0.00010958,2]
[395250984,1764569230875,-151.0,0.00010958,2]
[395250985,1764569230896,-151.0,0.00010958,2]
[395250986,1764569230915,-500.0,0.00010958,2]
[395250987,1764569230935,-169.433151,0.00010958,2]
[395250988,1764569230953,-500.0,0.00010958,2]
[395250989,1764569230973,-502.17316829,0.00010958,2]
[395250990,1764569230992,-627.74,0.00010958,2]
[395250991,1764569231011,-507.17630373,0.00010958,2]
[395250992,1764569231031,-151.0,0.00010958,2]
[395250993,1764569231050,-500.0,0.00010958,2]
[395250994,1764569231070,-502.42805416,0.00010958,2]
[395250995,1764569231090,-151.0,0.00010958,2]
[395250996,1764569231109,-500.0,0.00010958,2]
[395250997,1764569231128,-500.0,0.00010958,2]
[395250998,1764569231147,-151.0,0.00010958,2]
[395250999,1764569231168,-941.42,0.00010958,2]
[395251000,1764569231187,-989.68,0.00010958,2]
[395251001,1764569231207,-500.0,0.00010958,2]
[395251002,1764569231229,-500.0,0.00010958,2]
[395251003,1764569231249,-468.51185187,0.00010958,2]
[395251004,1764569231268,-652.44,0.00010958,2]
[395251005,1764569231292,-500.0,0.00010958,2]
[395251006,1764569231316,-1321.2,0.00010958,2]
[395251007,1764569231336,-500.0,0.00010958,2]
[395251008,1764569231358,-500.0,0.00010958,2]
[395251009,1764569231377,-867.68,0.00010958,2]
[395251010,1764569231397,-500.0,0.00010958,2]
[395251011,1764569231417,-500.0,0.00010958,2]
[395251012,1764569231436,-500.0,0.00010958,2]
[395251013,1764569231458,-519.72,0.00010958,2]
[395251014,1764569231480,-628.97,0.00010958,2]
[395251015,1764569231502,-1278.68,0.00010958,2]
[395251016,1764569231526,-4567.45,0.00010958,2]
[395251017,1764569231547,-713.62,0.00010958,2]
[395251018,1764569231568,-501.88099138,0.00010958,2]
[395251019,1764569231588,-933.67,0.00010958,2]
[395251020,1764569231607,-500.0,0.00010958,2]
[395251021,1764569231628,-500.0,0.00010958,2]
[395251022,1764569231648,-935.95,0.00010958,2]
[395251023,1764569231669,-500.0,0.00010958,2]
[395251024,1764569231688,-1388.73,0.00010958,2]
[395251025,1764569231709,-1276.42,0.00010958,2]
[395251026,1764569231729,-754.42,0.00010958,2]
[395251027,1764569231749,-710.37,0.00010958,2]
[395251028,1764569231769,-1151.74,0.00010958,2]
[395251029,1764569231788,-559.12,0.00010958,2]
[395251030,1764569231808,-500.0,0.00010958,2]
[395251031,1764569231830,-1227.7,0.00010958,2]
[395251032,1764569231852,-770.55,0.00010958,2]
[395251033,1764569231872,-500.0,0.00010958,2]
[395251034,1764569231893,-609.69,0.00010958,2]
[395251035,1764569231915,-756.47,0.00010958,2]
[395251036,1764569231934,-1975.34,0.00010958,2]
[395251037,1764569231954,-151.0,0.00010958,2]
[395251038,1764569231974,-500.0,0.00010958,2]
[395251039,1764569231995,-151.0,0.00010958,2]
[395251040,1764569232014,-604.91,0.00010958,2]
[395251041,1764569232034,-2489.82,0.00010958,2]
[395251042,1764569232053,-2835.35,0.00010958,2]
[395251043,1764569232073,-500.0,0.00010958,2]
[395251044,1764569232092,-151.0,0.00010958,2]
[395251045,1764569232111,-2939.04,0.00010958,2]
[395251046,1764569232131,-151.0,0.00010958,2]
[395251047,1764569232151,-3151.53,0.00010958,2]
[395251048,1764569232171,-720.25,0.00010958,2]
[395251049,1764569232189,-500.0,0.00010958,2]
[395251050,1764569232210,-1490.15,0.00010958,2]
[395251051,1764569232231,-151.0,0.00010958,2]
[395251052,1764569232251,-565.02,0.00010958,2]
[395251053,1764569232271,-500.0,0.00010958,2]
[395251054,1764569232290,-685.1,0.00010958,2]
[395251055,1764569232310,-500.0,0.00010958,2]
[395251056,1764569232330,-500.0,0.00010958,2]
[395251057,1764569232350,-2913.77,0.00010958,2]
[395251058,1764569232369,-500.0,0.00010958,2]